[Event "Titled Tuesday Blitz May 9 Late 2023"]
[White "Tologon tegin, Semetei"]
[Black "Sieciechowicz, Marcin"]
[WhiteFideId "13800574"]
[BlackFideId "1130170"]
[WhiteElo "2247"]
[BlackElo "2302"]
[Result "0-1"]
[Round "06"]
[TimeControl "180+2"]
[Date "2023.05.09"]
[WhiteClock "0:00:51"]
[BlackClock "0:01:17"]

1. Nf3 {[%clk 0:03:00]}  d5 {[%clk 0:02:59]} 2. e3 {[%clk 0:03:00]}  Nf6 {[%clk 0:02:56]} 3. d4 {[%clk 0:03:00]}  c6 {[%clk 0:02:55]} 4. Bd3 {[%clk 0:03:00]}  Bg4 {[%clk 0:02:55]} 5. Nbd2 {[%clk 0:02:59]}  e6 {[%clk 0:02:55]} 6. h3 {[%clk 0:02:59]}  Bh5 {[%clk 0:02:54]} 7. O-O {[%clk 0:02:59]}  Nbd7 {[%clk 0:02:54]} 8. c4 {[%clk 0:02:58]}  Be7 {[%clk 0:02:53]} 9. b3 {[%clk 0:02:58]}  O-O {[%clk 0:02:53]} 10. Bb2 {[%clk 0:02:58]}  a5 {[%clk 0:02:54]} 11. a3 {[%clk 0:02:57]}  Bd6 {[%clk 0:02:50]} 12. Qc2 {[%clk 0:02:57]}  Bg6 {[%clk 0:02:49]} 13. e4 {[%clk 0:02:55]}  dxe4 {[%clk 0:02:47]} 14. Nxe4 {[%clk 0:02:56]}  Nxe4 {[%clk 0:02:39]} 15. Bxe4 {[%clk 0:02:57]}  Nf6 {[%clk 0:02:38]} 16. Bxg6 {[%clk 0:02:55]}  hxg6 {[%clk 0:02:39]} 17. Rad1 {[%clk 0:02:53]}  Qe7 {[%clk 0:02:34]} 18. Qc1 {[%clk 0:02:47]}  Rfd8 {[%clk 0:02:33]} 19. Rfe1 {[%clk 0:02:45]}  Qf8 {[%clk 0:02:33]} 20. g3 {[%clk 0:02:18]}  Rac8 {[%clk 0:02:32]} 21. Kg2 {[%clk 0:02:17]}  c5 {[%clk 0:02:32]} 22. d5 {[%clk 0:02:12]}  exd5 {[%clk 0:02:31]} 23. cxd5 {[%clk 0:02:13]}  b5 {[%clk 0:02:30]} 24. Qg5 {[%clk 0:02:09]}  c4 {[%clk 0:02:16]} 25. bxc4 {[%clk 0:01:51]}  bxc4 {[%clk 0:02:17]} 26. Re3 {[%clk 0:01:32]}  Bc5 {[%clk 0:01:58]} 27. Rc3 {[%clk 0:01:19]}  Ne4 {[%clk 0:01:57]} 28. Qg4 {[%clk 0:01:19]}  Nxf2 {[%clk 0:01:46]} 29. Qh4 {[%clk 0:01:18]}  Be7 {[%clk 0:01:29]} 30. Qd4 {[%clk 0:01:15]}  Nxd1 {[%clk 0:01:29]} 31. Qxd1 {[%clk 0:01:13]}  Bf6 {[%clk 0:01:29]} 32. Rc2 {[%clk 0:01:10]}  Bxb2 {[%clk 0:01:28]} 33. Rxb2 {[%clk 0:01:11]}  Qxa3 {[%clk 0:01:28]} 34. Rb7 {[%clk 0:01:09]}  Qa2+ {[%clk 0:01:23]} 35. Kh1 {[%clk 0:00:51]}  Rb8 {[%clk 0:01:17]} 0-1


[Site "https://www.chess.com"]

[Event "Titled Tuesday Blitz May 9 Late 2023"]
[White "Karttunen, Mika"]
[Black "Yanchenko, Roman"]
[WhiteFideId "502081"]
[BlackFideId "4137329"]
[WhiteElo "2396"]
[BlackElo "2491"]
[Result "1-0"]
[Round "06"]
[TimeControl "180+2"]
[Date "2023.05.09"]
[WhiteClock "0:00:08"]
[BlackClock "0:00:13"]

1. d4 {[%clk 0:03:00]}  d5 {[%clk 0:03:00]} 2. c4 {[%clk 0:02:59]}  c6 {[%clk 0:03:00]} 3. Nf3 {[%clk 0:02:57]}  Bf5 {[%clk 0:03:00]} 4. Nc3 {[%clk 0:02:56]}  e6 {[%clk 0:03:00]} 5. e3 {[%clk 0:02:48]}  Nf6 {[%clk 0:03:00]} 6. Bd3 {[%clk 0:02:48]}  Bg6 {[%clk 0:03:00]} 7. O-O {[%clk 0:02:47]}  Bd6 {[%clk 0:03:00]} 8. Re1 {[%clk 0:02:46]}  Nbd7 {[%clk 0:03:00]} 9. a3 {[%clk 0:02:42]}  a6 {[%clk 0:02:59]} 10. e4 {[%clk 0:02:36]}  dxe4 {[%clk 0:02:59]} 11. Nxe4 {[%clk 0:02:36]}  Nxe4 {[%clk 0:02:59]} 12. Bxe4 {[%clk 0:02:37]}  Nf6 {[%clk 0:02:57]} 13. Bc2 {[%clk 0:02:33]}  O-O {[%clk 0:02:54]} 14. Bg5 {[%clk 0:02:27]}  Qa5 {[%clk 0:02:53]} 15. b4 {[%clk 0:02:23]}  Qc7 {[%clk 0:02:50]} 16. c5 {[%clk 0:02:10]}  Bf4 {[%clk 0:02:49]} 17. Bh4 {[%clk 0:01:57]}  Nd5 {[%clk 0:02:28]} 18. Bxg6 {[%clk 0:01:45]}  hxg6 {[%clk 0:02:28]} 19. Ne5 {[%clk 0:01:37]}  Ne7 {[%clk 0:01:45]} 20. Bg3 {[%clk 0:01:19]}  Bxg3 {[%clk 0:01:43]} 21. hxg3 {[%clk 0:01:19]}  Rad8 {[%clk 0:01:41]} 22. g4 {[%clk 0:01:05]}  Rd5 {[%clk 0:01:41]} 23. Re4 {[%clk 0:00:46]}  Rfd8 {[%clk 0:01:39]} 24. Qf3 {[%clk 0:00:36]}  f6 {[%clk 0:01:39]} 25. Nc4 {[%clk 0:00:30]}  Rxd4 {[%clk 0:01:39]} 26. Nd6 {[%clk 0:00:30]}  R8xd6 {[%clk 0:01:32]} 27. cxd6 {[%clk 0:00:30]}  Rxd6 {[%clk 0:01:26]} 28. Rae1 {[%clk 0:00:30]}  Kf7 {[%clk 0:01:24]} 29. Qg3 {[%clk 0:00:26]}  Qd7 {[%clk 0:01:24]} 30. Qb3 {[%clk 0:00:20]}  Nd5 {[%clk 0:01:24]} 31. g5 {[%clk 0:00:20]}  f5 {[%clk 0:01:24]} 32. Rh4 {[%clk 0:00:20]}  Qd8 {[%clk 0:01:19]} 33. Qg3 {[%clk 0:00:19]}  Ne7 {[%clk 0:01:15]} 34. Rh8 {[%clk 0:00:17]}  Qd7 {[%clk 0:01:11]} 35. Rb8 {[%clk 0:00:16]}  Rd3 {[%clk 0:00:43]} 36. Rxb7 {[%clk 0:00:10]}  Qxb7 {[%clk 0:00:28]} 37. Qxd3 {[%clk 0:00:10]}  Nd5 {[%clk 0:00:28]} 38. Qe2 {[%clk 0:00:10]}  Qc8 {[%clk 0:00:28]} 39. Qe5 {[%clk 0:00:10]}  Qd7 {[%clk 0:00:26]} 40. Rc1 {[%clk 0:00:10]}  Ne7 {[%clk 0:00:24]} 41. Qc3 {[%clk 0:00:08]}  Qd5 {[%clk 0:00:22]} 42. Qc4 {[%clk 0:00:08]}  Qb5 {[%clk 0:00:21]} 43. Qxb5 {[%clk 0:00:08]}  axb5 {[%clk 0:00:22]} 44. g3 {[%clk 0:00:07]}  e5 {[%clk 0:00:23]} 45. f4 {[%clk 0:00:07]}  e4 {[%clk 0:00:23]} 46. Kf2 {[%clk 0:00:08]}  Ke6 {[%clk 0:00:23]} 47. Ke3 {[%clk 0:00:08]}  Nd5+ {[%clk 0:00:21]} 48. Kd4 {[%clk 0:00:09]}  Kd6 {[%clk 0:00:22]} 49. Rh1 {[%clk 0:00:09]}  Nc7 {[%clk 0:00:20]} 50. Rh7 {[%clk 0:00:09]}  Ne6+ {[%clk 0:00:20]} 51. Ke3 {[%clk 0:00:09]}  c5 {[%clk 0:00:20]} 52. Rh8 {[%clk 0:00:08]}  cxb4 {[%clk 0:00:20]} 53. axb4 {[%clk 0:00:09]}  Nc7 {[%clk 0:00:21]} 54. Rb8 {[%clk 0:00:08]}  Nd5+ {[%clk 0:00:21]} 55. Kd4 {[%clk 0:00:09]}  Nxb4 {[%clk 0:00:21]} 56. Rxb5 {[%clk 0:00:09]}  Nc2+ {[%clk 0:00:20]} 57. Kc3 {[%clk 0:00:09]}  Ne3 {[%clk 0:00:20]} 58. Rb6+ {[%clk 0:00:09]}  Ke7 {[%clk 0:00:21]} 59. Rxg6 {[%clk 0:00:09]}  Kf7 {[%clk 0:00:22]} 60. Ra6 {[%clk 0:00:09]}  Nf1 {[%clk 0:00:22]} 61. Kd4 {[%clk 0:00:08]}  e3 {[%clk 0:00:22]} 62. Kd3 {[%clk 0:00:07]}  Nxg3 {[%clk 0:00:20]} 63. Kxe3 {[%clk 0:00:08]}  Ke7 {[%clk 0:00:19]} 64. Ra7+ {[%clk 0:00:07]}  Kf8 {[%clk 0:00:19]} 65. g6 {[%clk 0:00:07]}  Nh5 {[%clk 0:00:19]} 66. Rf7+ {[%clk 0:00:06]}  Ke8 {[%clk 0:00:19]} 67. Rxf5 {[%clk 0:00:07]}  Nf6 {[%clk 0:00:17]} 68. Rxf6 {[%clk 0:00:07]}  gxf6 {[%clk 0:00:17]} 69. f5 {[%clk 0:00:08]}  Kd7 {[%clk 0:00:18]} 70. Kd4 {[%clk 0:00:08]}  Ke7 {[%clk 0:00:13]} 71. Kd5 {[%clk 0:00:08]} 1-0


[Site "https://www.chess.com"]

[Event "Titled Tuesday Blitz May 9 Late 2023"]
[White "Defend1r"]
[Black "Pichot, Alan"]
[BlackFideId "110973"]
[WhiteElo "2554"]
[BlackElo "2573"]
[Result "0-1"]
[Round "06"]
[TimeControl "180+2"]
[Date "2023.05.09"]
[WhiteClock "0:01:26"]
[BlackClock "0:00:45"]

1. e4 {[%clk 0:03:00]}  e5 {[%clk 0:02:54]} 2. Nf3 {[%clk 0:02:57]}  Nc6 {[%clk 0:02:54]} 3. Bc4 {[%clk 0:02:46]}  Nf6 {[%clk 0:02:53]} 4. d4 {[%clk 0:02:45]}  exd4 {[%clk 0:02:52]} 5. e5 {[%clk 0:02:46]}  d5 {[%clk 0:02:52]} 6. Bb5 {[%clk 0:02:46]}  Ne4 {[%clk 0:02:52]} 7. Nxd4 {[%clk 0:02:45]}  Bd7 {[%clk 0:02:53]} 8. Bxc6 {[%clk 0:02:45]}  bxc6 {[%clk 0:02:54]} 9. f3 {[%clk 0:02:42]}  Qh4+ {[%clk 0:02:52]} 10. Ke2 {[%clk 0:02:31]}  Qf2+ {[%clk 0:02:47]} 11. Kd3 {[%clk 0:02:29]}  c5 {[%clk 0:02:42]} 12. c4 {[%clk 0:02:28]}  Qxd4+ {[%clk 0:02:41]} 13. Ke2 {[%clk 0:02:28]}  Qf2+ {[%clk 0:02:32]} 14. Kd3 {[%clk 0:02:28]}  Qxg2 {[%clk 0:02:13]} 15. fxe4 {[%clk 0:02:26]}  Qxe4+ {[%clk 0:02:13]} 16. Kd2 {[%clk 0:02:26]}  dxc4 {[%clk 0:02:07]} 17. Nc3 {[%clk 0:02:23]}  Qd3+ {[%clk 0:02:04]} 18. Ke1 {[%clk 0:02:23]}  Bc6 {[%clk 0:02:04]} 19. Qxd3 {[%clk 0:02:19]}  cxd3 {[%clk 0:02:05]} 20. Rg1 {[%clk 0:02:19]}  O-O-O {[%clk 0:02:01]} 21. Bf4 {[%clk 0:02:18]}  g6 {[%clk 0:02:00]} 22. Kd2 {[%clk 0:02:18]}  Be7 {[%clk 0:02:00]} 23. Raf1 {[%clk 0:02:16]}  h5 {[%clk 0:01:40]} 24. Be3 {[%clk 0:02:14]}  Rh7 {[%clk 0:01:39]} 25. Rf4 {[%clk 0:02:05]}  h4 {[%clk 0:01:21]} 26. Rgf1 {[%clk 0:01:59]}  Rh5 {[%clk 0:00:55]} 27. Rxf7 {[%clk 0:01:47]}  Rxe5 {[%clk 0:00:55]} 28. Rxe7 {[%clk 0:01:42]}  Rxe7 {[%clk 0:00:55]} 29. Bg5 {[%clk 0:01:42]}  Re2+ {[%clk 0:00:46]} 30. Kc1 {[%clk 0:01:34]}  Rc2+ {[%clk 0:00:44]} 31. Kb1 {[%clk 0:01:26]}  Re8 {[%clk 0:00:45]} 0-1


[Site "https://www.chess.com"]

[Event "Titled Tuesday Blitz May 9 Late 2023"]
[White "Rorrer, Grayson"]
[Black "Sreyas Payyappat"]
[WhiteFideId "30944996"]
[BlackFideId "46674969"]
[WhiteElo "2200"]
[BlackElo "2043"]
[Result "1-0"]
[Round "06"]
[TimeControl "180+2"]
[Date "2023.05.09"]
[WhiteClock "0:00:19"]
[BlackClock "0:00:09"]

1. b3 {[%clk 0:02:52]}  e5 {[%clk 0:02:59]} 2. Bb2 {[%clk 0:02:52]}  Nc6 {[%clk 0:02:59]} 3. e3 {[%clk 0:02:50]}  d5 {[%clk 0:02:59]} 4. Bb5 {[%clk 0:02:50]}  Bd6 {[%clk 0:02:55]} 5. f4 {[%clk 0:02:42]}  Qe7 {[%clk 0:02:37]} 6. Nc3 {[%clk 0:02:36]}  Nf6 {[%clk 0:02:29]} 7. fxe5 {[%clk 0:02:13]}  Bxe5 {[%clk 0:02:25]} 8. Nf3 {[%clk 0:02:13]}  Bg4 {[%clk 0:02:18]} 9. O-O {[%clk 0:02:13]}  O-O {[%clk 0:02:11]} 10. Qe1 {[%clk 0:02:03]}  Bd6 {[%clk 0:02:03]} 11. Bxc6 {[%clk 0:01:34]}  bxc6 {[%clk 0:02:02]} 12. Nd4 {[%clk 0:01:34]}  c5 {[%clk 0:01:48]} 13. Nf5 {[%clk 0:01:33]}  Bxf5 {[%clk 0:01:29]} 14. Rxf5 {[%clk 0:01:34]}  d4 {[%clk 0:01:29]} 15. exd4 {[%clk 0:01:29]}  cxd4 {[%clk 0:01:11]} 16. Nb5 {[%clk 0:01:21]}  c5 {[%clk 0:00:34]} 17. Qxe7 {[%clk 0:01:03]}  Bxe7 {[%clk 0:00:34]} 18. Re1 {[%clk 0:01:04]}  Bd8 {[%clk 0:00:22]} 19. Ba3 {[%clk 0:00:45]}  a6 {[%clk 0:00:14]} 20. Nd6 {[%clk 0:00:45]}  Bc7 {[%clk 0:00:14]} 21. Nc4 {[%clk 0:00:43]}  Rfe8 {[%clk 0:00:13]} 22. Ref1 {[%clk 0:00:31]}  Ng4 {[%clk 0:00:06]} 23. h3 {[%clk 0:00:29]}  Nh6 {[%clk 0:00:04]} 24. Rxc5 {[%clk 0:00:29]}  Bg3 {[%clk 0:00:04]} 25. Rg5 {[%clk 0:00:25]}  Bh4 {[%clk 0:00:04]} 26. Rd5 {[%clk 0:00:20]}  Re4 {[%clk 0:00:02]} 27. Bb2 {[%clk 0:00:15]}  Rae8 {[%clk 0:00:02]} 28. Rxd4 {[%clk 0:00:14]}  Rxd4 {[%clk 0:00:02]} 29. Bxd4 {[%clk 0:00:15]}  Re2 {[%clk 0:00:03]} 30. Be3 {[%clk 0:00:15]}  g6 {[%clk 0:00:03]} 31. Bxh6 {[%clk 0:00:15]}  f5 {[%clk 0:00:03]} 32. Be3 {[%clk 0:00:14]}  Kf7 {[%clk 0:00:03]} 33. Ne5+ {[%clk 0:00:13]}  Ke6 {[%clk 0:00:04]} 34. Nf3 {[%clk 0:00:13]}  Bg3 {[%clk 0:00:04]} 35. Nd4+ {[%clk 0:00:14]}  Kd5 {[%clk 0:00:04]} 36. Nxe2 {[%clk 0:00:15]}  Be5 {[%clk 0:00:04]} 37. Nc3+ {[%clk 0:00:15]}  Kc6 {[%clk 0:00:04]} 38. d4 {[%clk 0:00:15]}  Bf6 {[%clk 0:00:04]} 39. Rd1 {[%clk 0:00:16]}  Kd6 {[%clk 0:00:04]} 40. Bf4+ {[%clk 0:00:15]}  Kd7 {[%clk 0:00:05]} 41. Ne2 {[%clk 0:00:16]}  Be7 {[%clk 0:00:04]} 42. d5 {[%clk 0:00:16]}  Bc5+ {[%clk 0:00:05]} 43. Kf1 {[%clk 0:00:15]}  a5 {[%clk 0:00:06]} 44. c4 {[%clk 0:00:16]}  Ke7 {[%clk 0:00:05]} 45. d6+ {[%clk 0:00:16]}  Kd7 {[%clk 0:00:06]} 46. Nc3 {[%clk 0:00:16]}  Bb4 {[%clk 0:00:06]} 47. Na4 {[%clk 0:00:16]}  Bc5 {[%clk 0:00:07]} 48. Nxc5+ {[%clk 0:00:16]}  Kc6 {[%clk 0:00:08]} 49. d7 {[%clk 0:00:17]}  h6 {[%clk 0:00:08]} 50. d8=Q {[%clk 0:00:18]}  g5 {[%clk 0:00:09]} 51. Qd6# {[%clk 0:00:19]} 1-0


[Site "https://www.chess.com"]

[Event "Titled Tuesday Blitz May 9 Late 2023"]
[White "Ezat, Mohamed"]
[Black "Bryakin, Mikhail"]
[WhiteFideId "10600906"]
[BlackFideId "4165314"]
[WhiteElo "2386"]
[BlackElo "2467"]
[Result "0-1"]
[Round "06"]
[TimeControl "180+2"]
[Date "2023.05.09"]
[WhiteClock "0:00:00"]
[BlackClock "0:00:12"]

1. d4 {[%clk 0:02:55]}  g6 {[%clk 0:01:51]} 2. c4 {[%clk 0:02:49]}  Bg7 {[%clk 0:01:50]} 3. e4 {[%clk 0:02:49]}  d6 {[%clk 0:01:48]} 4. Nc3 {[%clk 0:02:49]}  e5 {[%clk 0:01:42]} 5. dxe5 {[%clk 0:02:49]}  dxe5 {[%clk 0:01:40]} 6. Qxd8+ {[%clk 0:02:49]}  Kxd8 {[%clk 0:01:41]} 7. f4 {[%clk 0:02:49]}  c6 {[%clk 0:01:41]} 8. Nf3 {[%clk 0:02:49]}  Nd7 {[%clk 0:01:41]} 9. Be2 {[%clk 0:02:49]}  Ngf6 {[%clk 0:01:40]} 10. O-O {[%clk 0:02:49]}  Ke7 {[%clk 0:01:40]} 11. Nxe5 {[%clk 0:02:09]}  Nxe5 {[%clk 0:01:37]} 12. fxe5 {[%clk 0:02:09]}  Nd7 {[%clk 0:01:31]} 13. Bg5+ {[%clk 0:02:09]}  Ke8 {[%clk 0:01:31]} 14. e6 {[%clk 0:01:55]}  fxe6 {[%clk 0:01:29]} 15. Rad1 {[%clk 0:01:55]}  h6 {[%clk 0:01:26]} 16. Bh4 {[%clk 0:01:54]}  Be5 {[%clk 0:01:17]} 17. Bg4 {[%clk 0:01:45]}  g5 {[%clk 0:01:17]} 18. Bh5+ {[%clk 0:01:27]}  Kd8 {[%clk 0:01:17]} 19. Be1 {[%clk 0:01:04]}  Rh7 {[%clk 0:01:11]} 20. Bf7 {[%clk 0:00:47]}  Ke7 {[%clk 0:01:09]} 21. Bh5 {[%clk 0:00:41]}  Nf6 {[%clk 0:01:04]} 22. Bf3 {[%clk 0:00:36]}  c5 {[%clk 0:01:04]} 23. Nb5 {[%clk 0:00:35]}  a6 {[%clk 0:01:03]} 24. Nc3 {[%clk 0:00:33]}  Bd7 {[%clk 0:01:02]} 25. Bf2 {[%clk 0:00:32]}  b6 {[%clk 0:01:02]} 26. h3 {[%clk 0:00:26]}  Bc6 {[%clk 0:01:02]} 27. Rfe1 {[%clk 0:00:25]}  Nd7 {[%clk 0:00:56]} 28. Nd5+ {[%clk 0:00:23]}  Kf8 {[%clk 0:00:45]} 29. Nxb6 {[%clk 0:00:22]}  Nxb6 {[%clk 0:00:45]} 30. Bxc5+ {[%clk 0:00:22]}  Kf7 {[%clk 0:00:40]} 31. Bxb6 {[%clk 0:00:23]}  Bxb2 {[%clk 0:00:37]} 32. e5 {[%clk 0:00:22]}  Bxf3 {[%clk 0:00:37]} 33. Rf1 {[%clk 0:00:22]}  Kg6 {[%clk 0:00:33]} 34. Rxf3 {[%clk 0:00:20]}  Rf7 {[%clk 0:00:28]} 35. Rxf7 {[%clk 0:00:11]}  Kxf7 {[%clk 0:00:29]} 36. Bd4 {[%clk 0:00:09]}  Ba3 {[%clk 0:00:22]} 37. c5 {[%clk 0:00:09]}  Rc8 {[%clk 0:00:18]} 38. Kh1 {[%clk 0:00:06]}  Ke7 {[%clk 0:00:17]} 39. Rd3 {[%clk 0:00:03]}  Bb4 {[%clk 0:00:16]} 40. a3 {[%clk 0:00:02]}  Ba5 {[%clk 0:00:16]} 41. Rb3 {[%clk 0:00:03]}  Rc7 {[%clk 0:00:16]} 42. Rb8 {[%clk 0:00:02]}  Kd7 {[%clk 0:00:16]} 43. Bf2 {[%clk 0:00:02]}  Kc6 {[%clk 0:00:16]} 44. Rh8 {[%clk 0:00:02]}  Bc3 {[%clk 0:00:14]} 45. Rxh6 {[%clk 0:00:03]}  Kd5 {[%clk 0:00:14]} 46. Rg6 {[%clk 0:00:03]}  Bd2 {[%clk 0:00:13]} 47. h4 {[%clk 0:00:03]}  gxh4 {[%clk 0:00:13]} 48. Rg4 {[%clk 0:00:03]}  Bc3 {[%clk 0:00:09]} 49. Rxh4 {[%clk 0:00:02]}  Rf7 {[%clk 0:00:09]} 50. Rh5 {[%clk 0:00:03]}  Rxf2 {[%clk 0:00:09]} 51. Rh8 {[%clk 0:00:03]}  Bxe5 {[%clk 0:00:08]} 52. Rd8+ {[%clk 0:00:04]}  Kxc5 {[%clk 0:00:08]} 53. Kg1 {[%clk 0:00:04]}  Rb2 {[%clk 0:00:07]} 54. g4 {[%clk 0:00:03]}  Rb3 {[%clk 0:00:06]} 55. Kg2 {[%clk 0:00:02]}  Rg3+ {[%clk 0:00:06]} 56. Kf2 {[%clk 0:00:03]}  Rxg4 {[%clk 0:00:07]} 57. Ra8 {[%clk 0:00:03]}  Ra4 {[%clk 0:00:08]} 58. Ke2 {[%clk 0:00:03]}  Kd5 {[%clk 0:00:08]} 59. Rc8 {[%clk 0:00:03]}  Bd6 {[%clk 0:00:09]} 60. Rc2 {[%clk 0:00:04]}  Rxa3 {[%clk 0:00:09]} 61. Rd2+ {[%clk 0:00:05]}  Ke5 {[%clk 0:00:09]} 62. Rb2 {[%clk 0:00:06]}  Bc5 {[%clk 0:00:09]} 63. Rc2 {[%clk 0:00:05]}  Kd5 {[%clk 0:00:10]} 64. Rd2+ {[%clk 0:00:05]}  Bd4 {[%clk 0:00:10]} 65. Rc2 {[%clk 0:00:06]}  Rb3 {[%clk 0:00:10]} 66. Rc8 {[%clk 0:00:07]}  Ke4 {[%clk 0:00:10]} 67. Rd8 {[%clk 0:00:08]}  Rb2+ {[%clk 0:00:10]} 68. Kf1 {[%clk 0:00:08]}  e5 {[%clk 0:00:11]} 69. Re8 {[%clk 0:00:09]}  Ra2 {[%clk 0:00:12]} 70. Ra8 {[%clk 0:00:08]}  a5 {[%clk 0:00:12]} 71. Ra6 {[%clk 0:00:09]}  a4 {[%clk 0:00:13]} 72. Rxa4 {[%clk 0:00:00]}  Rxa4 {[%clk 0:00:12]} 0-1


[Site "https://www.chess.com"]

[Event "Titled Tuesday Blitz May 9 Late 2023"]
[White "Bilan, Danila"]
[Black "Nazari, Arad"]
[WhiteFideId "24161918"]
[BlackFideId "12577324"]
[WhiteElo "2182"]
[BlackElo "2175"]
[Result "0-1"]
[Round "06"]
[TimeControl "180+2"]
[Date "2023.05.09"]
[WhiteClock "0:00:03"]
[BlackClock "0:01:08"]

1. d4 {[%clk 0:03:00]}  Nf6 {[%clk 0:03:00]} 2. Nf3 {[%clk 0:03:00]}  g6 {[%clk 0:02:58]} 3. Bg5 {[%clk 0:02:59]}  Ne4 {[%clk 0:02:56]} 4. Bh4 {[%clk 0:02:58]}  Bg7 {[%clk 0:02:55]} 5. Nbd2 {[%clk 0:02:58]}  Nxd2 {[%clk 0:02:55]} 6. Qxd2 {[%clk 0:02:57]}  O-O {[%clk 0:02:55]} 7. e3 {[%clk 0:02:57]}  c5 {[%clk 0:02:55]} 8. c3 {[%clk 0:02:57]}  b6 {[%clk 0:02:50]} 9. Bc4 {[%clk 0:02:50]}  Bb7 {[%clk 0:02:50]} 10. O-O {[%clk 0:02:46]}  Bxf3 {[%clk 0:02:49]} 11. gxf3 {[%clk 0:02:47]}  d5 {[%clk 0:02:49]} 12. Be2 {[%clk 0:02:42]}  Qd7 {[%clk 0:02:45]} 13. Rad1 {[%clk 0:01:35]}  c4 {[%clk 0:02:25]} 14. e4 {[%clk 0:01:30]}  e6 {[%clk 0:02:22]} 15. Bg5 {[%clk 0:01:11]}  Nc6 {[%clk 0:02:16]} 16. h4 {[%clk 0:01:03]}  h5 {[%clk 0:02:12]} 17. e5 {[%clk 0:00:51]}  b5 {[%clk 0:02:07]} 18. Kh2 {[%clk 0:00:44]}  Kh7 {[%clk 0:02:06]} 19. Rg1 {[%clk 0:00:38]}  Ne7 {[%clk 0:01:46]} 20. f4 {[%clk 0:00:33]}  Nf5 {[%clk 0:01:44]} 21. Bxh5 {[%clk 0:00:16]}  gxh5 {[%clk 0:01:37]} 22. Qe2 {[%clk 0:00:16]}  Bh6 {[%clk 0:01:27]} 23. Qxh5 {[%clk 0:00:12]}  Rg8 {[%clk 0:01:26]} 24. Bf6 {[%clk 0:00:08]}  Rg6 {[%clk 0:01:24]} 25. Rg5 {[%clk 0:00:04]}  Rag8 {[%clk 0:01:21]} 26. Rdg1 {[%clk 0:00:04]}  b4 {[%clk 0:01:19]} 27. Kh3 {[%clk 0:00:03]}  bxc3 {[%clk 0:01:16]} 28. bxc3 {[%clk 0:00:03]}  Qa4 {[%clk 0:01:15]} 29. Rxf5 {[%clk 0:00:03]}  exf5 {[%clk 0:01:14]} 30. Bg5 {[%clk 0:00:02]}  Qc2 {[%clk 0:01:09]} 31. Rg3 {[%clk 0:00:02]}  Qb1 {[%clk 0:01:08]} 32. Bxh6 {[%clk 0:00:03]}  Qh1# {[%clk 0:01:08]} 0-1


[Site "https://www.chess.com"]

[Event "Titled Tuesday Blitz May 9 Late 2023"]
[White "Dragomirescu, Robin-Alexandru"]
[Black "Harshavardhan G B"]
[WhiteFideId "1213849"]
[BlackFideId "25059009"]
[WhiteElo "2356"]
[BlackElo "2323"]
[Result "0-1"]
[Round "06"]
[TimeControl "180+2"]
[Date "2023.05.09"]
[WhiteClock "0:00:00"]
[BlackClock "0:00:09"]

1. b3 {[%clk 0:03:00]}  d5 {[%clk 0:02:58]} 2. Bb2 {[%clk 0:03:01]}  Nf6 {[%clk 0:02:59]} 3. Nf3 {[%clk 0:03:01]}  Nbd7 {[%clk 0:02:58]} 4. e3 {[%clk 0:03:02]}  g6 {[%clk 0:02:59]} 5. c4 {[%clk 0:03:01]}  c6 {[%clk 0:02:58]} 6. cxd5 {[%clk 0:03:00]}  cxd5 {[%clk 0:02:59]} 7. Nc3 {[%clk 0:03:00]}  Bg7 {[%clk 0:02:59]} 8. Nxd5 {[%clk 0:02:57]}  O-O {[%clk 0:03:00]} 9. Nxf6+ {[%clk 0:02:54]}  Nxf6 {[%clk 0:03:01]} 10. Bc4 {[%clk 0:02:50]}  Bd7 {[%clk 0:03:01]} 11. O-O {[%clk 0:02:49]}  Bc6 {[%clk 0:03:01]} 12. Ne5 {[%clk 0:02:48]}  Bd5 {[%clk 0:03:01]} 13. d4 {[%clk 0:02:45]}  e6 {[%clk 0:03:00]} 14. Rc1 {[%clk 0:02:44]}  Rc8 {[%clk 0:02:59]} 15. Qe2 {[%clk 0:02:43]}  Ne4 {[%clk 0:02:59]} 16. f3 {[%clk 0:02:23]}  Nd6 {[%clk 0:02:55]} 17. Bd3 {[%clk 0:02:24]}  b6 {[%clk 0:02:53]} 18. Nc4 {[%clk 0:02:13]}  Nxc4 {[%clk 0:02:49]} 19. bxc4 {[%clk 0:02:08]}  Bb7 {[%clk 0:02:48]} 20. Rfd1 {[%clk 0:02:05]}  Re8 {[%clk 0:02:48]} 21. Rd2 {[%clk 0:01:55]}  e5 {[%clk 0:02:39]} 22. dxe5 {[%clk 0:01:52]}  Bxe5 {[%clk 0:02:37]} 23. Bxe5 {[%clk 0:01:37]}  Rxe5 {[%clk 0:02:38]} 24. Bxg6 {[%clk 0:01:37]}  Qe7 {[%clk 0:02:30]} 25. Bb1 {[%clk 0:01:26]}  Rxe3 {[%clk 0:02:29]} 26. Qf2 {[%clk 0:01:27]}  Re8 {[%clk 0:02:29]} 27. Qg3+ {[%clk 0:01:19]}  Kh8 {[%clk 0:02:27]} 28. Bf5 {[%clk 0:01:00]}  Bxf3 {[%clk 0:02:10]} 29. Rf1 {[%clk 0:00:40]}  Be2 {[%clk 0:01:51]} 30. Qf4 {[%clk 0:00:32]}  Qe5 {[%clk 0:01:24]} 31. Qh4 {[%clk 0:00:31]}  Qg7 {[%clk 0:01:22]} 32. Rf4 {[%clk 0:00:26]}  Bf3 {[%clk 0:01:17]} 33. h3 {[%clk 0:00:23]}  Rg8 {[%clk 0:00:49]} 34. Bg4 {[%clk 0:00:20]}  Bc6 {[%clk 0:00:46]} 35. Kh2 {[%clk 0:00:20]}  Re4 {[%clk 0:00:40]} 36. Rdf2 {[%clk 0:00:19]}  Qe5 {[%clk 0:00:27]} 37. Qf6+ {[%clk 0:00:16]}  Qxf6 {[%clk 0:00:27]} 38. Rxf6 {[%clk 0:00:17]}  Be8 {[%clk 0:00:27]} 39. R2f4 {[%clk 0:00:14]}  Rxf4 {[%clk 0:00:27]} 40. Rxf4 {[%clk 0:00:15]}  Kg7 {[%clk 0:00:25]} 41. c5 {[%clk 0:00:12]}  bxc5 {[%clk 0:00:22]} 42. Rc4 {[%clk 0:00:12]}  Kf6 {[%clk 0:00:21]} 43. Rxc5 {[%clk 0:00:12]}  Rg5 {[%clk 0:00:22]} 44. Rc8 {[%clk 0:00:10]}  Bb5 {[%clk 0:00:20]} 45. Rc7 {[%clk 0:00:06]}  a6 {[%clk 0:00:19]} 46. Bf3 {[%clk 0:00:05]}  Re5 {[%clk 0:00:18]} 47. Ra7 {[%clk 0:00:03]}  Re3 {[%clk 0:00:17]} 48. a4 {[%clk 0:00:01]}  Bc4 {[%clk 0:00:17]} 49. Rc7 {[%clk 0:00:01]}  Bf1 {[%clk 0:00:10]} 50. Rc6+ {[%clk 0:00:01]}  Kg7 {[%clk 0:00:10]} 51. Rxa6 {[%clk 0:00:00]}  Bxa6 {[%clk 0:00:09]} 0-1


[Site "https://www.chess.com"]